[Event "Late-Titled-Tuesday-Blitz-September-26-2023"]
[Site "Chess.com"]
[Date "2023.09.26"]
[Round "2"]
[White "UK_23"]
[Black "ritanovikova"]
[Result "1/2-1/2"]
[WhiteElo "2437"]
[BlackElo "2168"]
[TimeControl "180+1"]
[EndTime "14:19:47 PDT"]
[Termination "Game drawn - insufficient material"]

1. e4 {[%clk 0:02:58.7]} 1... d5 {[%clk 0:02:56.4]} 2. exd5 {[%clk 0:02:58.1]}
2... Qxd5 {[%clk 0:02:57.3]} 3. Nc3 {[%clk 0:02:58.5]} 3... Qd6 {[%clk
0:02:57.6]} 4. d4 {[%clk 0:02:58.9]} 4... Nf6 {[%clk 0:02:57.3]} 5. Nf3 {[%clk
0:02:59.4]} 5... Bf5 {[%clk 0:02:57.1]} 6. g3 {[%clk 0:02:58.5]} 6... c6 {[%clk
0:02:57.1]} 7. Bg2 {[%clk 0:02:59]} 7... e6 {[%clk 0:02:57.7]} 8. O-O {[%clk
0:02:59.1]} 8... Nbd7 {[%clk 0:02:57.4]} 9. Nh4 {[%clk 0:02:57.6]} 9... Bg4
{[%clk 0:02:57.1]} 10. Qd3 {[%clk 0:02:57.9]} 10... Qc7 {[%clk 0:02:53.3]} 11.
h3 {[%clk 0:02:56.5]} 11... Bh5 {[%clk 0:02:53.5]} 12. Bf4 {[%clk 0:02:53.5]}
12... Bd6 {[%clk 0:02:53]} 13. Bxd6 {[%clk 0:02:53.7]} 13... Qxd6 {[%clk
0:02:53.9]} 14. g4 {[%clk 0:02:54.2]} 14... Qf4 {[%clk 0:02:39.9]} 15. Ne2
{[%clk 0:02:36.4]} 15... Qg5 {[%clk 0:02:38.9]} 16. Qg3 {[%clk 0:02:34.7]} 16...
Bg6 {[%clk 0:02:35.1]} 17. f4 {[%clk 0:02:34.7]} 17... Qa5 {[%clk 0:02:25.5]}
18. f5 {[%clk 0:02:30]} 18... exf5 {[%clk 0:02:12.4]} 19. gxf5 {[%clk
0:02:30.9]} 19... Bh5 {[%clk 0:02:12.4]} 20. Nf4 {[%clk 0:02:26.4]} 20... O-O
{[%clk 0:02:06.4]} 21. Qg5 {[%clk 0:02:10.5]} 21... Qd2 {[%clk 0:02:05.3]} 22.
Rf2 {[%clk 0:01:59.2]} 22... Qe3 {[%clk 0:02:01.8]} 23. Ne6 {[%clk 0:01:33.3]}
23... Qxg5 {[%clk 0:01:52.4]} 24. Nxg5 {[%clk 0:01:34.2]} 24... h6 {[%clk
0:01:48.6]} 25. Ne4 {[%clk 0:01:29.6]} 25... Nxe4 {[%clk 0:01:46.1]} 26. Bxe4
{[%clk 0:01:30.5]} 26... Nf6 {[%clk 0:01:42.9]} 27. Bg2 {[%clk 0:01:28.5]} 27...
g5 {[%clk 0:01:39.8]} 28. fxg6 {[%clk 0:01:27.2]} 28... fxg6 {[%clk 0:01:39.9]}
29. Raf1 {[%clk 0:01:24.7]} 29... Kg7 {[%clk 0:01:39.7]} 30. c3 {[%clk
0:01:14.1]} 30... Nd7 {[%clk 0:01:27.9]} 31. Nf3 {[%clk 0:01:05.6]} 31... g5
{[%clk 0:01:23.5]} 32. Nd2 {[%clk 0:01:01.3]} 32... Rxf2 {[%clk 0:01:21.6]} 33.
Rxf2 {[%clk 0:01:00.9]} 33... Re8 {[%clk 0:01:20.1]} 34. Ne4 {[%clk 0:01:00.5]}
34... Re7 {[%clk 0:01:12.9]} 35. Nd6 {[%clk 0:00:59.6]} 35... Nb6 {[%clk
0:01:11.4]} 36. Kf1 {[%clk 0:00:46]} 36... Bg6 {[%clk 0:01:01.1]} 37. b3 {[%clk
0:00:43.5]} 37... Rd7 {[%clk 0:00:56.9]} 38. Ne4 {[%clk 0:00:39.3]} 38... Nd5
{[%clk 0:00:54.2]} 39. Nc5 {[%clk 0:00:28]} 39... Ne3+ {[%clk 0:00:48.3]} 40.
Kg1 {[%clk 0:00:23.5]} 40... Re7 {[%clk 0:00:37.4]} 41. Re2 {[%clk 0:00:22.9]}
41... Bh5 {[%clk 0:00:30.4]} 42. Re1 {[%clk 0:00:20.8]} 42... b6 {[%clk
0:00:25.3]} 43. Nd3 {[%clk 0:00:19.4]} 43... Be8 {[%clk 0:00:23.7]} 44. Ne5
{[%clk 0:00:18.4]} 44... Nd5 {[%clk 0:00:20.9]} 45. Bxd5 {[%clk 0:00:17.2]}
45... cxd5 {[%clk 0:00:21.6]} 46. Kf2 {[%clk 0:00:17.4]} 46... Rc7 {[%clk
0:00:21]} 47. Re3 {[%clk 0:00:17.3]} 47... Bg6 {[%clk 0:00:18.8]} 48. Ke2 {[%clk
0:00:17.5]} 48... Bf5 {[%clk 0:00:18]} 49. Kd2 {[%clk 0:00:16.5]} 49... Bxh3
{[%clk 0:00:17.6]} 50. Rxh3 {[%clk 0:00:16.3]} 50... Re7 {[%clk 0:00:12.2]} 51.
Rd3 {[%clk 0:00:17.2]} 51... Kf6 {[%clk 0:00:11.1]} 52. c4 {[%clk 0:00:17.9]}
52... Ke6 {[%clk 0:00:11.3]} 53. Re3 {[%clk 0:00:17.5]} 53... Kd6 {[%clk
0:00:11.2]} 54. Kd3 {[%clk 0:00:17.8]} 54... h5 {[%clk 0:00:11.2]} 55. b4 {[%clk
0:00:18.1]} 55... g4 {[%clk 0:00:10.8]} 56. c5+ {[%clk 0:00:18.2]} 56... bxc5
{[%clk 0:00:11.1]} 57. bxc5+ {[%clk 0:00:19.1]} 57... Kc7 {[%clk 0:00:11.2]} 58.
Ng6 {[%clk 0:00:16.9]} 58... Rg7 {[%clk 0:00:10.9]} 59. Nh4 {[%clk 0:00:16.6]}
59... g3 {[%clk 0:00:10.4]} 60. Ke2 {[%clk 0:00:17.3]} 60... g2 {[%clk
0:00:10.1]} 61. Nf3 {[%clk 0:00:17.8]} 61... g1=Q {[%clk 0:00:09.9]} 62. Nxg1
{[%clk 0:00:18.2]} 62... Rxg1 {[%clk 0:00:10.3]} 63. Rh3 {[%clk 0:00:18.9]}
63... Rg2+ {[%clk 0:00:10.3]} 64. Ke3 {[%clk 0:00:19.3]} 64... Rxa2 {[%clk
0:00:10.7]} 65. Rxh5 {[%clk 0:00:20]} 65... Kc6 {[%clk 0:00:10.5]} 66. Rh6+
{[%clk 0:00:19.9]} 66... Kb5 {[%clk 0:00:11.2]} 67. Kf4 {[%clk 0:00:20.1]} 67...
Kc4 {[%clk 0:00:11.2]} 68. Ke5 {[%clk 0:00:19.5]} 68... Re2+ {[%clk 0:00:11.1]}
69. Kd6 {[%clk 0:00:19.9]} 69... Kxd4 {[%clk 0:00:11.3]} 70. c6 {[%clk
0:00:19.4]} 70... Rc2 {[%clk 0:00:11.1]} 71. c7 {[%clk 0:00:19.4]} 71... a5
{[%clk 0:00:10.5]} 72. Rh4+ {[%clk 0:00:19.7]} 72... Kd3 {[%clk 0:00:10.2]} 73.
Ra4 {[%clk 0:00:20.3]} 73... d4 {[%clk 0:00:09.1]} 74. Rxa5 {[%clk 0:00:20.9]}
74... Rxc7 {[%clk 0:00:08.6]} 75. Kxc7 {[%clk 0:00:21]} 75... Kc3 {[%clk
0:00:09.1]} 76. Rc5+ {[%clk 0:00:20.9]} 76... Kb2 {[%clk 0:00:08.7]} 77. Rd5
{[%clk 0:00:19.2]} 77... Kc3 {[%clk 0:00:08.7]} 78. Kd6 {[%clk 0:00:19.6]} 78...
d3 {[%clk 0:00:09.3]} 79. Rc5+ {[%clk 0:00:19.3]} 79... Kb2 {[%clk 0:00:09.1]}
80. Rb5+ {[%clk 0:00:18.1]} 80... Kc3 {[%clk 0:00:09.6]} 81. Rc5+ {[%clk
0:00:17.3]} 81... Kb2 {[%clk 0:00:10]} 82. Ke5 {[%clk 0:00:16.9]} 82... d2
{[%clk 0:00:10.4]} 83. Rd5 {[%clk 0:00:16.7]} 83... Kc2 {[%clk 0:00:10.8]} 84.
Rc5+ {[%clk 0:00:17]} 84... Kb2 {[%clk 0:00:11.6]} 85. Rd5 {[%clk 0:00:17.1]}
85... Kc2 {[%clk 0:00:11.9]} 86. Ke4 {[%clk 0:00:17.5]} 86... d1=Q {[%clk
0:00:12.5]} 87. Rxd1 {[%clk 0:00:18.4]} 87... Kxd1 {[%clk 0:00:12.8]} 1/2-1/2

[Event "Late-Titled-Tuesday-Blitz-September-26-2023"]
[Site "Chess.com"]
[Date "2023.09.26"]
[Round "3"]
[White "MITerryble"]
[Black "Andrei_Skvortsov"]
[Result "1-0"]
[WhiteElo "2935"]
[BlackElo "2672"]
[TimeControl "180+1"]
[EndTime "14:23:14 PDT"]
[Termination "MITerryble won by resignation"]

1. d4 {[%clk 0:03:00.9]} 1... d5 {[%clk 0:02:59.1]} 2. Bg5 {[%clk 0:03:01.3]}
2... c6 {[%clk 0:02:58.8]} 3. e3 {[%clk 0:03:01.3]} 3... Qb6 {[%clk 0:02:59.1]}
4. b3 {[%clk 0:03:01.8]} 4... Nf6 {[%clk 0:02:52.9]} 5. Bd3 {[%clk 0:02:57.5]}
5... Nbd7 {[%clk 0:02:40.2]} 6. Nf3 {[%clk 0:02:57.1]} 6... h6 {[%clk
0:02:38.1]} 7. Bh4 {[%clk 0:02:55.9]} 7... e6 {[%clk 0:02:38.2]} 8. O-O {[%clk
0:02:55.5]} 8... c5 {[%clk 0:02:38.8]} 9. c4 {[%clk 0:02:54.9]} 9... Be7 {[%clk
0:02:35.8]} 10. Nc3 {[%clk 0:02:54.2]} 10... cxd4 {[%clk 0:02:31.7]} 11. exd4
{[%clk 0:02:52.6]} 11... dxc4 {[%clk 0:02:32.2]} 12. bxc4 {[%clk 0:02:52.6]}
12... Qa5 {[%clk 0:02:32.4]} 13. Qd2 {[%clk 0:02:44.7]} 13... Bb4 {[%clk
0:02:11.5]} 14. Rfc1 {[%clk 0:02:44.7]} 14... Qd8 {[%clk 0:02:00.9]} 15. Qb2
{[%clk 0:02:40]} 15... Be7 {[%clk 0:01:57.8]} 16. d5 {[%clk 0:02:24.5]} 16...
exd5 {[%clk 0:01:54.8]} 17. Nxd5 {[%clk 0:02:21.8]} 17... Nxd5 {[%clk 0:01:53]}
18. Qxg7 {[%clk 0:02:17]} 18... Bf6 {[%clk 0:01:53.2]} 19. Re1+ {[%clk
0:02:14.1]} 19... Ne5 {[%clk 0:01:53.2]} 20. Rxe5+ {[%clk 0:02:13.4]} 20... Be6
{[%clk 0:01:41.3]} 21. Rxe6+ {[%clk 0:02:12.3]} 1-0

[Event "Late-Titled-Tuesday-Blitz-September-26-2023"]
[Site "Chess.com"]
[Date "2023.09.26"]
[Round "3"]
[White "UK_23"]
[Black "The_Princess_Moon"]
[Result "1-0"]
[WhiteElo "2445"]
[BlackElo "2269"]
[TimeControl "180+1"]
[EndTime "14:23:20 PDT"]
[Termination "UK_23 won by resignation"]

1. e4 {[%clk 0:03:00.9]} 1... c5 {[%clk 0:02:59.2]} 2. Nf3 {[%clk 0:03:00.9]}
2... a6 {[%clk 0:02:59.8]} 3. g3 {[%clk 0:03:00.1]} 3... b5 {[%clk 0:02:58.6]}
4. Bg2 {[%clk 0:03:00.3]} 4... Bb7 {[%clk 0:02:59.2]} 5. Qe2 {[%clk 0:03:01]}
5... Nf6 {[%clk 0:02:52.4]} 6. e5 {[%clk 0:03:01.1]} 6... Nd5 {[%clk 0:02:50.4]}
7. Nc3 {[%clk 0:03:00.6]} 7... Nxc3 {[%clk 0:02:49.1]} 8. dxc3 {[%clk
0:03:01.5]} 8... e6 {[%clk 0:02:48.8]} 9. a4 {[%clk 0:03:00]} 9... c4 {[%clk
0:02:28.7]} 10. O-O {[%clk 0:02:55.2]} 10... Be7 {[%clk 0:02:24.5]} 11. Rd1
{[%clk 0:02:53.8]} 11... O-O {[%clk 0:02:22.2]} 12. h4 {[%clk 0:02:53.5]} 12...
Qc7 {[%clk 0:02:17.7]} 13. Bf4 {[%clk 0:02:53.4]} 13... Rd8 {[%clk 0:02:07.7]}
14. h5 {[%clk 0:02:49.2]} 14... d6 {[%clk 0:02:06.3]} 15. h6 {[%clk 0:02:39.9]}
15... g6 {[%clk 0:01:47.4]} 16. exd6 {[%clk 0:02:30.8]} 16... Bxd6 {[%clk
0:01:43.4]} 17. Rxd6 {[%clk 0:02:25.8]} 17... Rxd6 {[%clk 0:01:40.2]} 18. Qe5
{[%clk 0:02:26.3]} 18... f5 {[%clk 0:01:39.9]} 19. Qxd6 {[%clk 0:02:23.4]} 19...
Qxd6 {[%clk 0:01:37]} 20. Bxd6 {[%clk 0:02:24.3]} 20... Nd7 {[%clk 0:01:35]} 21.
axb5 {[%clk 0:02:24.2]} 21... axb5 {[%clk 0:01:35.2]} 22. Rxa8+ {[%clk
0:02:24.8]} 22... Bxa8 {[%clk 0:01:35.4]} 23. Ne5 {[%clk 0:02:25.3]} 23... Nxe5
{[%clk 0:01:31.2]} 24. Bxe5 {[%clk 0:02:22.9]} 1-0

[Event "Late-Titled-Tuesday-Blitz-September-26-2023"]
[Site "Chess.com"]
[Date "2023.09.26"]
[Round "3"]
[White "simplerXiao"]
[Black "PawnEatingZombie"]
[Result "1-0"]
[WhiteElo "2512"]
[BlackElo "2145"]
[TimeControl "180+1"]
[EndTime "14:23:44 PDT"]
[Termination "simplerXiao won by resignation"]

1. e4 {[%clk 0:03:00.9]} 1... Nf6 {[%clk 0:02:59.5]} 2. e5 {[%clk 0:03:00.6]}
2... Nd5 {[%clk 0:03:00.1]} 3. d4 {[%clk 0:03:00.9]} 3... d6 {[%clk 0:03:00.6]}
4. exd6 {[%clk 0:02:58.5]} 4... cxd6 {[%clk 0:02:59.2]} 5. Nf3 {[%clk
0:02:56.7]} 5... g6 {[%clk 0:02:55.1]} 6. Be2 {[%clk 0:02:57]} 6... Bg7 {[%clk
0:02:55.3]} 7. O-O {[%clk 0:02:57.7]} 7... O-O {[%clk 0:02:55.4]} 8. c4 {[%clk
0:02:58]} 8... Nf6 {[%clk 0:02:52.4]} 9. h3 {[%clk 0:02:57.2]} 9... Nc6 {[%clk
0:02:50.7]} 10. Nc3 {[%clk 0:02:57.4]} 10... Bf5 {[%clk 0:02:39.8]} 11. Nh4
{[%clk 0:02:52.1]} 11... Ne4 {[%clk 0:02:28.5]} 12. Nxf5 {[%clk 0:02:50.6]}
12... gxf5 {[%clk 0:02:29.1]} 13. Be3 {[%clk 0:02:48.7]} 13... e5 {[%clk
0:02:16.4]} 14. dxe5 {[%clk 0:02:38.1]} 14... dxe5 {[%clk 0:02:13.4]} 15. Nxe4
{[%clk 0:02:37]} 15... fxe4 {[%clk 0:02:12.8]} 16. Qb3 {[%clk 0:02:32.8]} 16...
Nd4 {[%clk 0:01:59.6]} 17. Bxd4 {[%clk 0:02:31.5]} 17... exd4 {[%clk 0:01:59.5]}
18. Qxb7 {[%clk 0:02:31.2]} 18... d3 {[%clk 0:01:58.2]} 19. Bh5 {[%clk
0:02:30.4]} 19... Qg5 {[%clk 0:01:48]} 20. Bxf7+ {[%clk 0:02:26.2]} 20... Kh8
{[%clk 0:01:46.6]} 21. Bd5 {[%clk 0:02:25.5]} 21... Rab8 {[%clk 0:01:39.4]} 22.
Qxa7 {[%clk 0:02:20.8]} 22... Rxb2 {[%clk 0:01:31.3]} 23. Bxe4 {[%clk
0:02:17.9]} 23... Rbxf2 {[%clk 0:01:30.9]} 24. Rxf2 {[%clk 0:02:14.9]} 24...
Rxf2 {[%clk 0:01:15.8]} 25. Qxf2 {[%clk 0:02:12.7]} 1-0

[Event "Late-Titled-Tuesday-Blitz-September-26-2023"]
[Site "Chess.com"]
[Date "2023.09.26"]
[Round "3"]
[White "HamedWafa4"]
[Black "Roenko_Artur"]
[Result "1-0"]
[WhiteElo "2650"]
[BlackElo "2459"]
[TimeControl "180+1"]
[EndTime "14:23:46 PDT"]
[Termination "HamedWafa4 won by resignation"]

1. e4 {[%clk 0:02:56.1]} 1... e6 {[%clk 0:02:59.9]} 2. d4 {[%clk 0:02:55.4]}
2... d5 {[%clk 0:02:59.9]} 3. e5 {[%clk 0:02:55.2]} 3... c5 {[%clk 0:02:59.8]}
4. c3 {[%clk 0:02:55.5]} 4... Qb6 {[%clk 0:03:00.2]} 5. Nf3 {[%clk 0:02:54.7]}
5... Nc6 {[%clk 0:03:00.5]} 6. Be2 {[%clk 0:02:54]} 6... cxd4 {[%clk 0:03:00.7]}
7. cxd4 {[%clk 0:02:53.7]} 7... Nh6 {[%clk 0:03:01.1]} 8. Bxh6 {[%clk 0:02:54]}
8... Qxb2 {[%clk 0:03:00.6]} 9. O-O {[%clk 0:02:53.7]} 9... Qxa1 {[%clk
0:02:55.9]} 10. Qb3 {[%clk 0:02:52.5]} 10... gxh6 {[%clk 0:02:49.2]} 11. Nc3
{[%clk 0:02:51.8]} 11... Qxf1+ {[%clk 0:02:45.7]} 12. Bxf1 {[%clk 0:02:52.7]}
12... Be7 {[%clk 0:02:37.1]} 13. Bd3 {[%clk 0:02:46.2]} 13... f5 {[%clk
0:02:24.7]} 14. exf6 {[%clk 0:02:43.3]} 14... Bxf6 {[%clk 0:02:25]} 15. Nb5
{[%clk 0:02:43.5]} 15... O-O {[%clk 0:02:21.6]} 16. Qd1 {[%clk 0:02:36]} 16...
e5 {[%clk 0:02:07.3]} 17. Nc7 {[%clk 0:02:31.7]} 17... Rb8 {[%clk 0:01:40.8]}
18. dxe5 {[%clk 0:02:24.2]} 18... Nxe5 {[%clk 0:01:30.4]} 19. Nxd5 {[%clk
0:02:23]} 19... Nxf3+ {[%clk 0:01:26.8]} 20. Qxf3 {[%clk 0:02:22.5]} 20... Bg7
{[%clk 0:01:25.2]} 21. Ne7+ {[%clk 0:02:18.5]} 21... Kh8 {[%clk 0:01:23.1]} 22.
Qe4 {[%clk 0:02:18.8]} 22... Bf5 {[%clk 0:01:18.2]} 23. Nxf5 {[%clk 0:02:18.3]}
23... Rbe8 {[%clk 0:01:15.8]} 24. Ne7 {[%clk 0:02:17.4]} 1-0

[Event "Late-Titled-Tuesday-Blitz-September-26-2023"]
[Site "Chess.com"]
[Date "2023.09.26"]
[Round "3"]
[White "OparinGrigoriy"]
[Black "sofaceindisguise"]
[Result "1-0"]
[WhiteElo "2975"]
[BlackElo "2701"]
[TimeControl "180+1"]
[EndTime "14:24:06 PDT"]
[Termination "OparinGrigoriy won by resignation"]

1. Nc3 {[%clk 0:02:58.6]} 1... c5 {[%clk 0:02:58.6]} 2. e4 {[%clk 0:02:58.8]}
2... Nc6 {[%clk 0:02:58.7]} 3. Nf3 {[%clk 0:02:58.6]} 3... g6 {[%clk 0:02:59.1]}
4. d4 {[%clk 0:02:58.9]} 4... cxd4 {[%clk 0:03:00]} 5. Nxd4 {[%clk 0:02:59.7]}
5... Bg7 {[%clk 0:03:00.8]} 6. Be3 {[%clk 0:03:00.4]} 6... Nf6 {[%clk
0:03:01.2]} 7. Bc4 {[%clk 0:03:00.1]} 7... O-O {[%clk 0:03:01.7]} 8. Bb3 {[%clk
0:03:00.8]} 8... Re8 {[%clk 0:03:01.8]} 9. O-O {[%clk 0:02:59.3]} 9... d6 {[%clk
0:03:00.2]} 10. Nxc6 {[%clk 0:02:52]} 10... bxc6 {[%clk 0:03:00.1]} 11. h3
{[%clk 0:02:52.5]} 11... a5 {[%clk 0:02:59.2]} 12. Re1 {[%clk 0:02:46.5]} 12...
Qc7 {[%clk 0:02:56.3]} 13. Bg5 {[%clk 0:02:37.7]} 13... Nd7 {[%clk 0:02:54]} 14.
Qd2 {[%clk 0:02:36.4]} 14... Nc5 {[%clk 0:02:52.1]} 15. Bc4 {[%clk 0:02:34.6]}
15... Be6 {[%clk 0:02:49.9]} 16. Bf1 {[%clk 0:02:34.5]} 16... a4 {[%clk
0:02:49.1]} 17. b4 {[%clk 0:02:25.4]} 17... axb3 {[%clk 0:02:39.8]} 18. axb3
{[%clk 0:02:26.3]} 18... Rxa1 {[%clk 0:02:35.6]} 19. Rxa1 {[%clk 0:02:27.2]}
19... Bxc3 {[%clk 0:02:35.9]} 20. Qxc3 {[%clk 0:02:24.3]} 20... Nxe4 {[%clk
0:02:36.3]} 21. Qe3 {[%clk 0:02:22.6]} 21... Nxg5 {[%clk 0:02:37.2]} 22. Qxg5
{[%clk 0:02:22.9]} 22... d5 {[%clk 0:02:27.1]} 23. h4 {[%clk 0:02:22.1]} 23...
Qd6 {[%clk 0:02:26.3]} 24. h5 {[%clk 0:02:20.1]} 24... f6 {[%clk 0:02:26.7]} 25.
Qe3 {[%clk 0:02:18.4]} 25... Bf7 {[%clk 0:02:26.9]} 26. h6 {[%clk 0:02:15.2]}
26... Qe5 {[%clk 0:01:58.4]} 27. Qxe5 {[%clk 0:02:09.4]} 27... fxe5 {[%clk
0:01:58.4]} 28. Ra7 {[%clk 0:02:10.2]} 28... Kf8 {[%clk 0:01:34.6]} 29. Rc7
{[%clk 0:02:08]} 29... Ra8 {[%clk 0:01:35.1]} 30. Rxc6 {[%clk 0:02:04.2]} 30...
Ra1 {[%clk 0:01:35.6]} 31. f3 {[%clk 0:02:00.4]} 31... Rb1 {[%clk 0:01:35]} 32.
Kf2 {[%clk 0:01:59.5]} 32... g5 {[%clk 0:01:34]} 33. Rc8+ {[%clk 0:01:56]} 1-0

[Event "Late-Titled-Tuesday-Blitz-September-26-2023"]
[Site "Chess.com"]
[Date "2023.09.26"]
[Round "3"]
[White "rasmussvane"]
[Black "hurricane7791"]
[Result "1-0"]
[WhiteElo "2987"]
[BlackElo "2703"]
[TimeControl "180+1"]
[EndTime "14:24:17 PDT"]
[Termination "rasmussvane won by resignation"]

1. Nf3 {[%clk 0:02:57.1]} 1... c5 {[%clk 0:02:56.7]} 2. c4 {[%clk 0:02:56.4]}
2... Nc6 {[%clk 0:02:57]} 3. Nc3 {[%clk 0:02:54.7]} 3... g6 {[%clk 0:02:54.3]}
4. e3 {[%clk 0:02:54.6]} 4... Nf6 {[%clk 0:02:54.4]} 5. d4 {[%clk 0:02:55]} 5...
cxd4 {[%clk 0:02:55.3]} 6. exd4 {[%clk 0:02:55.6]} 6... d5 {[%clk 0:02:55.9]} 7.
cxd5 {[%clk 0:02:56.1]} 7... Nxd5 {[%clk 0:02:56.8]} 8. Qb3 {[%clk 0:02:56.1]}
8... Nxc3 {[%clk 0:02:56.6]} 9. Bc4 {[%clk 0:02:56.1]} 9... Nd5 {[%clk
0:02:55.9]} 10. Bxd5 {[%clk 0:02:56.5]} 10... e6 {[%clk 0:02:56.5]} 11. Bxc6+
{[%clk 0:02:57]} 11... bxc6 {[%clk 0:02:57.4]} 12. O-O {[%clk 0:02:55.8]} 12...
Qd5 {[%clk 0:02:57.9]} 13. Qe3 {[%clk 0:02:53.7]} 13... f6 {[%clk 0:02:44]} 14.
Bd2 {[%clk 0:02:53.4]} 14... Rb8 {[%clk 0:02:42.7]} 15. Bc3 {[%clk 0:02:53]}
15... g5 {[%clk 0:02:38.4]} 16. Nd2 {[%clk 0:02:53]} 16... Kf7 {[%clk 0:02:32]}
17. f4 {[%clk 0:02:46.2]} 17... g4 {[%clk 0:02:28.1]} 18. Rae1 {[%clk
0:02:45.8]} 18... f5 {[%clk 0:02:01.9]} 19. b3 {[%clk 0:02:44.1]} 19... c5
{[%clk 0:02:01.7]} 20. Nc4 {[%clk 0:02:37.5]} 20... Bb7 {[%clk 0:01:50.1]} 21.
Rf2 {[%clk 0:02:36.3]} 21... h5 {[%clk 0:01:31.3]} 22. Ne5+ {[%clk 0:02:28.9]}
22... Kg8 {[%clk 0:01:30.8]} 23. Ng6 {[%clk 0:02:28.9]} 23... Rh6 {[%clk
0:01:29.9]} 24. Nxf8 {[%clk 0:02:28.5]} 24... Rxf8 {[%clk 0:01:22.3]} 25. dxc5
{[%clk 0:02:28.1]} 25... h4 {[%clk 0:01:20]} 26. Rd2 {[%clk 0:02:27.3]} 26...
Qc6 {[%clk 0:01:13.3]} 27. Qe5 {[%clk 0:02:27.2]} 27... Rh7 {[%clk 0:01:12]} 28.
Qxe6+ {[%clk 0:02:12.8]} 28... Qxe6 {[%clk 0:01:12.5]} 29. Rxe6 {[%clk
0:02:13.5]} 29... h3 {[%clk 0:01:13]} 30. c6 {[%clk 0:02:11.3]} 30... Bc8 {[%clk
0:01:08]} 31. Rg6+ {[%clk 0:02:10.3]} 31... Kf7 {[%clk 0:01:08.4]} 32. Rf6+
{[%clk 0:02:10.9]} 32... Ke7 {[%clk 0:01:06.4]} 33. Rxf8 {[%clk 0:02:11.8]}
33... Kxf8 {[%clk 0:01:07.3]} 34. Rd8+ {[%clk 0:02:11.7]} 1-0

[Event "Late-Titled-Tuesday-Blitz-September-26-2023"]
[Site "Chess.com"]
[Date "2023.09.26"]
[Round "3"]
[White "ritanovikova"]
[Black "egnfanclub"]
[Result "0-1"]
[WhiteElo "2164"]
[BlackElo "2394"]
[TimeControl "180+1"]
[EndTime "14:24:20 PDT"]
[Termination "egnfanclub won by resignation"]

1. d4 {[%clk 0:02:58]} 1... d5 {[%clk 0:02:59.6]} 2. Bf4 {[%clk 0:02:57.7]} 2...
Nf6 {[%clk 0:02:59.3]} 3. Nd2 {[%clk 0:02:58.5]} 3... c6 {[%clk 0:02:53.8]} 4.
c3 {[%clk 0:02:57.7]} 4... e6 {[%clk 0:02:51.3]} 5. e3 {[%clk 0:02:56.1]} 5...
Nbd7 {[%clk 0:02:51.5]} 6. h3 {[%clk 0:02:55.7]} 6... Be7 {[%clk 0:02:51.9]} 7.
Ngf3 {[%clk 0:02:55.8]} 7... O-O {[%clk 0:02:46]} 8. Bd3 {[%clk 0:02:54.1]} 8...
Re8 {[%clk 0:02:46]} 9. O-O {[%clk 0:02:53]} 9... c5 {[%clk 0:02:39.8]} 10. Rc1
{[%clk 0:02:51.9]} 10... b6 {[%clk 0:02:37.9]} 11. Bb1 {[%clk 0:02:51.3]} 11...
Bb7 {[%clk 0:02:38]} 12. Qc2 {[%clk 0:02:51.1]} 12... Ne4 {[%clk 0:02:37.4]} 13.
Nxe4 {[%clk 0:02:49.5]} 13... dxe4 {[%clk 0:02:37.4]} 14. Nd2 {[%clk 0:02:49.3]}
14... f5 {[%clk 0:02:36.6]} 15. Rfd1 {[%clk 0:02:46.9]} 15... cxd4 {[%clk
0:02:32.6]} 16. exd4 {[%clk 0:02:40.4]} 16... Nf6 {[%clk 0:02:28.2]} 17. Nc4
{[%clk 0:02:37.3]} 17... Nd5 {[%clk 0:02:14.1]} 18. Be5 {[%clk 0:02:28.7]} 18...
Rc8 {[%clk 0:02:03.4]} 19. Qb3 {[%clk 0:02:14.3]} 19... a6 {[%clk 0:01:38.2]}
20. Nxb6 {[%clk 0:02:04.6]} 20... Qxb6 {[%clk 0:01:33.9]} 21. Qc2 {[%clk
0:02:02.1]} 21... Bd6 {[%clk 0:01:23.4]} 22. Kh1 {[%clk 0:01:50.4]} 22... Bxe5
{[%clk 0:01:21.7]} 23. dxe5 {[%clk 0:01:51.1]} 23... Qc7 {[%clk 0:01:20.4]} 24.
f3 {[%clk 0:01:45.6]} 24... exf3 {[%clk 0:01:16.2]} 0-1

[Event "Late-Titled-Tuesday-Blitz-September-26-2023"]
[Site "Chess.com"]
[Date "2023.09.26"]
[Round "3"]
[White "KVAIDAN"]
[Black "KamlaPasand"]
[Result "0-1"]
[WhiteElo "2268"]
[BlackElo "2448"]
[TimeControl "180+1"]
[EndTime "14:24:25 PDT"]
[Termination "KamlaPasand won by resignation"]

1. f4 {[%clk 0:02:08.9]} 1... d5 {[%clk 0:02:57.7]} 2. Nf3 {[%clk 0:02:08.5]}
2... Nf6 {[%clk 0:02:57.2]} 3. e3 {[%clk 0:02:08.7]} 3... e6 {[%clk 0:02:56.7]}
4. b3 {[%clk 0:02:08]} 4... Be7 {[%clk 0:02:57.3]} 5. Bb2 {[%clk 0:02:08.5]}
5... O-O {[%clk 0:02:58.2]} 6. Bd3 {[%clk 0:02:08.9]} 6... c5 {[%clk 0:02:56.8]}
7. O-O {[%clk 0:02:09.5]} 7... Nc6 {[%clk 0:02:54.9]} 8. Ne5 {[%clk 0:02:09.7]}
8... Qc7 {[%clk 0:02:47.8]} 9. Rf3 {[%clk 0:02:09]} 9... d4 {[%clk 0:02:40.2]}
10. Rh3 {[%clk 0:02:06.5]} 10... Nxe5 {[%clk 0:02:40.1]} 11. Bxh7+ {[%clk
0:02:00.2]} 11... Nxh7 {[%clk 0:02:38.2]} 12. Qh5 {[%clk 0:02:00.6]} 12... f6
{[%clk 0:02:29.7]} 13. Qxh7+ {[%clk 0:01:54.8]} 13... Kf7 {[%clk 0:02:30.2]} 14.
fxe5 {[%clk 0:01:50.6]} 14... Qxe5 {[%clk 0:02:30.2]} 15. Rg3 {[%clk 0:01:50.6]}
15... Rg8 {[%clk 0:02:27.3]} 16. Na3 {[%clk 0:01:50.6]} 16... b5 {[%clk
0:02:20.5]} 17. exd4 {[%clk 0:01:43.5]} 17... cxd4 {[%clk 0:02:19]} 18. Rf1
{[%clk 0:01:42.8]} 18... Ba6 {[%clk 0:02:13.4]} 19. d3 {[%clk 0:01:42.1]} 19...
Rac8 {[%clk 0:02:11.7]} 20. Bc1 {[%clk 0:01:29.1]} 20... Rxc2 {[%clk 0:02:08.9]}
21. Bh6 {[%clk 0:01:29.3]} 21... Rxa2 {[%clk 0:01:52.6]} 22. Bxg7 {[%clk
0:01:22.8]} 22... Qxg3 {[%clk 0:01:47.8]} 23. hxg3 {[%clk 0:01:21]} 23... Rxg7
{[%clk 0:01:48.1]} 24. Qh5+ {[%clk 0:01:17.2]} 24... Kf8 {[%clk 0:01:47.2]} 25.
Qxb5 {[%clk 0:01:11.9]} 25... Bxb5 {[%clk 0:01:45.1]} 0-1